bitfinex-derivatives/quotes_ETHF0:USTF0_20250904
["timestamp","ask_amount","ask_price","bid_price","bid_amount"]
[1757019705524,0.8275,4304.5,4304.4,3.4438342]
[1757019705726,0.8275,4304.5,4304.4,3.2098342]
[1757019707029,0.8275,4304.5,4304.4,0.0020342]
[1757019710034,0.8275,4304.5,4303.8,0.4182]
[1757019710235,0.8172,4303.5,4303.4,3.62604]
[1757019710944,0.8172,4303.5,4303.4,3.62794837]
[1757019711240,0.8172,4303.5,4303.4,3.83264837]
[1757019713246,0.2905,4303.5,4303.4,4.25924837]
[1757019713441,0.1161,4303.8,4303.7,0.41821]
[1757019713646,0.125,4306.0,4304.9,0.88399]
[1757019713647,3.3326,4305.0,4304.9,0.88399]
[1757019713947,0.2038,4305.4,4305.3,0.77305]
[1757019714142,0.4943,4305.4,4305.3,0.77305]
[1757019714344,0.6922,4305.4,4305.3,0.77305]
[1757019714849,0.6922,4305.4,4305.3,0.355]
[1757019715043,0.6922,4305.4,4305.3,0.1775]
[1757019715341,0.6922,4305.4,4305.3,0.355]
[1757019715544,0.4943,4305.4,4305.3,0.355]
[1757019716140,0.6922,4305.4,4305.3,0.355]
[1757019717347,0.6922,4305.4,4305.2,0.41806]
[1757019717547,0.2905,4305.3,4305.2,0.41806]
[1757019717745,0.6922,4305.3,4305.2,0.59556]
[1757019718949,0.6922,4305.3,4305.2,0.88396]
[1757019718950,0.4943,4305.3,4305.2,0.88396]
[1757019719250,0.2905,4305.3,4305.2,0.88396]
[1757019722060,0.6922,4305.3,4305.2,0.77306]
[1757019722351,0.6922,4305.3,4305.2,0.59556]
[1757019727856,0.6922,4305.3,4305.2,0.77306]
[1757019728049,0.2905,4305.5,4305.4,0.88394]
[1757019728352,0.8172,4306.0,4305.9,0.355]
[1757019728754,0.8172,4306.0,4305.9,0.773]
[1757019730251,0.8172,4306.0,4305.9,0.5955]
[1757019731159,0.2905,4306.0,4305.9,0.8839]
[1757019731358,0.81913946,4306.5,4306.4,0.77295]
[1757019731558,0.81913946,4306.5,4306.4,0.1775]
[1757019731758,0.52863946,4306.5,4306.3,0.41795]
[1757019731961,0.6922,4306.4,4306.3,0.41795]
[1757019732259,0.6922,4306.4,4306.3,0.59545]
[1757019734155,0.6922,4306.4,4306.3,0.41795]
[1757019736256,0.4017,4306.4,4306.2,0.41796]
[1757019736455,0.2905,4306.3,4306.2,0.41796]
[1757019736650,0.6922,4306.3,4306.2,0.41796]
[1757019737858,0.6922,4306.3,4305.7,3.5527]
[1757019738056,0.8474,4306.0,4305.9,0.1769]
[1757019738258,0.319,4305.9,4305.8,0.418]
[1757019738560,0.7223,4305.9,4305.8,0.418]
[1757019739761,0.7223,4305.9,4305.7,3.2078]
[1757019739961,0.319,4305.8,4305.7,3.2078]
[1757019740162,0.7223,4305.8,4305.7,3.62581]
[1757019740461,0.7223,4305.8,4305.7,3.80261]
[1757019740669,0.7223,4305.8,4305.7,0.59481]
[1757019740862,0.4033,4305.8,4305.0,3.2078]
[1757019741061,0.7223,4305.1,4305.0,4.21348]
[1757019741763,0.7223,4305.1,4305.0,3.7954]
[1757019742061,0.7223,4305.1,4305.0,0.5876]
[1757019742963,0.7223,4305.1,4305.0,1.00568]
[1757019744058,0.7223,4305.1,4305.0,0.5876]
[1757019746370,0.7223,4305.1,4305.0,0.3536]
[1757019748964,0.7223,4305.1,4305.0,0.77168]
[1757019749964,0.7223,4305.1,4305.0,0.3536]
[1757019750158,0.7223,4305.1,4305.0,0.77168]
[1757019751072,0.7223,4305.1,4305.0,0.3536]
[1757019751671,0.7223,4305.1,4305.0,0.77168]
[1757019752371,0.7223,4305.1,4305.0,0.3536]
[1757019753072,0.7223,4305.1,4305.0,0.1768]
[1757019753474,0.7223,4305.1,4305.0,0.59488]
[1757019754172,0.1251,4305.0,4304.5,5.28093036]
[1757019754377,0.7223,4304.6,4304.5,0.59493]
[1757019754677,0.7223,4304.6,4304.5,0.82893]
[1757019754879,0.7223,4304.6,4304.5,0.1768]
[1757019755377,0.7223,4304.6,4304.5,0.59493]
[1757019755875,0.7223,4304.6,4304.5,0.41813]
[1757019756072,0.5284,4304.5,4304.1,2.07313036]
[1757019756272,0.319,4304.4,4304.3,0.88224]
[1757019756575,0.4441,4305.0,4304.9,0.88219]
[1757019756771,0.6376,4305.0,4304.9,0.77169]
[1757019756973,0.8474,4305.0,4304.9,0.77169]
[1757019760878,0.1251,4305.5,4305.4,0.41804]
[1757019761079,0.4441,4305.5,4305.4,0.88214]
[1757019763185,0.319,4305.5,4305.4,0.88214]
[1757019763394,0.3186,4306.0,4305.9,0.3536]
[1757019763592,0.5284,4306.0,4305.9,0.3536]
[1757019763991,0.8474,4306.0,4305.9,0.3536]
[1757019765294,0.8474,4306.0,4305.9,0.77159]
[1757019767397,0.8474,4306.0,4305.9,0.59479]
[1757019767596,0.8474,4306.0,4305.9,0.41799]
[1757019769298,0.8474,4306.0,4305.9,0.59479]
[1757019776799,0.8474,4306.0,4305.9,0.77189]
[1757019779302,0.6376,4306.0,4305.9,0.77189]
[1757019779504,0.8459,4306.0,4305.9,0.77189]
[1757019779797,0.8459,4306.0,4305.9,0.59479]
[1757019780898,0.8459,4306.0,4305.7,0.234]
[1757019781199,0.6989,4305.6,4305.5,3.62583]
[1757019781899,0.2897,4305.6,4305.5,4.09073]
[1757019782100,0.1251,4306.0,4305.9,0.41799]
[1757019782300,0.1251,4306.0,4305.9,1.11689]
[1757019782704,0.4148,4306.0,4305.9,1.11689]
[1757019783204,0.2897,4306.0,4305.9,1.11689]
[1757019784204,0.408,4306.0,4305.9,1.11689]
[1757019787007,0.2897,4306.0,4305.9,1.11689]
[1757019788306,0.326,4306.5,4306.4,0.41795]
[1757019788512,0.6157,4306.5,4306.4,1.11685]
[1757019789008,0.6157,4306.5,4306.4,1.00615]
[1757019789605,0.824,4306.5,4306.4,1.00615]
[1757019789807,0.824,4306.5,4306.4,0.234]
[1757019790312,0.824,4306.5,4306.4,0.65195]
[1757019790807,0.824,4306.5,4306.4,0.234]
[1757019791410,0.824,4306.5,4306.4,0.65195]
[1757019797415,0.824,4306.5,4306.4,0.82905]
[1757019798217,0.824,4306.5,4306.4,1.00615]
[1757019800618,0.824,4306.5,4306.4,0.65195]
[1757019800820,0.824,4306.5,4306.4,1.00495]
[1757019803721,0.4148,4306.5,4306.4,1.11525]
[1757019804117,0.6103,4306.5,4306.4,1.11525]
[1757019806721,0.6103,4306.5,4306.4,1.00495]
[1757019808117,0.808,4306.5,4306.4,1.00495]
[1757019812424,0.4148,4306.5,4306.4,1.11525]
[1757019812626,0.1251,4307.0,4306.9,0.8812]
[1757019812823,0.5183,4307.5,4307.4,0.59435]
[1757019813022,0.8295,4307.5,4307.4,0.59435]
[1757019815028,0.8295,4307.5,4307.4,0.41785]
[1757019820629,0.8295,4307.5,4307.2,0.234]
[1757019820825,0.8305,4307.0,4306.9,0.41789]
[1757019822732,0.5193,4307.0,4306.8,0.41791]
[1757019822927,0.7044,4306.9,4306.8,0.41791]
[1757019824429,0.7044,4306.9,4306.7,0.41792]
[1757019824633,0.3932,4306.9,4306.7,0.41792]
[1757019824933,0.7044,4306.8,4306.7,0.41792]
[1757019826037,0.8305,4306.5,4306.4,5.87538036]
[1757019826234,0.8305,4306.5,4306.4,3.80225]
[1757019827123,0.8305,4306.5,4306.4,3.3843]
[1757019827329,0.8305,4306.5,4306.4,3.80225]
[1757019828133,0.8305,4306.5,4306.4,0.59445]
[1757019831637,0.5193,4306.5,4306.3,0.65196]
[1757019831937,0.7051,4306.4,4306.3,0.65196]
[1757019832130,0.7051,4306.4,4306.3,0.82726]
[1757019832832,0.7051,4306.4,4306.3,1.00256]
[1757019833134,0.6199,4307.0,4306.9,0.3506]
[1757019833738,0.8312,4307.0,4306.9,0.3506]
[1757019834527,0.8312,4307.0,4306.9,0.1753]
[1757019834927,0.5308,4307.0,4306.7,0.41791]
[1757019835132,0.5308,4307.0,4306.7,0.59321]
[1757019835133,0.4047,4306.8,4306.7,0.59321]
[1757019835342,0.7051,4306.8,4306.7,0.59321]
[1757019835542,0.7051,4306.8,4306.7,0.1753]
[1757019835741,0.3004,4306.7,4306.5,0.41794]
[1757019836037,0.4047,4306.6,4306.5,0.41794]
[1757019836342,0.7051,4306.6,4306.5,0.41794]
[1757019838637,0.7051,4306.4,4306.3,0.41796]
[1757019839234,0.3004,4306.3,4306.1,0.41797]
[1757019839442,0.3004,4306.4,4306.2,0.41796]
[1757019839644,0.7051,4306.3,4306.2,0.41796]
[1757019840843,0.7051,4306.3,4305.9,3.2078]
[1757019840844,0.7051,4305.9,4305.8,0.652]
[1757019841044,0.7051,4305.9,4305.8,0.418]
[1757019841243,0.8282,4305.5,4305.4,3.2078]
[1757019841542,0.8282,4305.5,4305.4,3.5584]
[1757019841731,0.8282,4305.5,4305.4,3.3831]
[1757019841936,0.8282,4305.5,4305.4,0.1753]
[1757019843950,0.8282,4305.5,4305.4,0.59334]
[1757019845347,0.8282,4305.5,4305.4,0.76864]
[1757019845946,0.8282,4305.5,4305.4,0.59334]
[1757019847343,0.8282,4305.5,4305.4,0.41804]
[1757019848537,0.4235,4305.5,4305.4,0.76864]
[1757019848739,0.6169,4306.0,4305.9,0.7686]
[1757019849047,0.8282,4306.0,4305.9,0.7686]
[1757019851555,0.8282,4306.0,4305.9,0.70524703]
[1757019851745,0.8282,4306.0,4305.9,1.05584703]
[1757019852144,0.8282,4306.5,4306.4,0.59325]
[1757019852344,0.8282,4306.5,4306.4,0.70519703]
[1757019856548,0.8282,4306.5,4306.4,0.88049703]
[1757019856754,0.8282,4306.5,4306.4,1.05579703]
[1757019857861,0.4235,4306.5,4306.4,1.16769703]
[1757019858045,0.6338,4306.5,4306.4,1.16769703]
[1757019858251,0.6338,4306.5,4306.4,1.05579703]
[1757019859362,0.4441,4307.0,4306.9,0.8825]
[1757019859556,0.318,4307.0,4306.9,1.16974703]
[1757019859760,0.6514,4307.5,4307.4,0.77185]
[1757019859962,0.6514,4307.5,4307.4,1.05909703]
[1757019860260,0.8531,4307.5,4307.4,1.05909703]
[1757019861562,0.8531,4307.5,4307.4,0.77185]
[1757019861862,0.8531,4307.5,4307.4,1.05970808]
[1757019863669,0.6514,4308.0,4307.9,0.7718]
[1757019863866,0.8531,4308.0,4307.9,1.05965808]
[1757019864571,0.6514,4308.0,4307.9,1.17025808]
[1757019865369,0.4411,4308.0,4307.9,1.17025808]
[1757019865870,0.6514,4308.0,4307.9,1.17025808]
[1757019866169,0.6514,4308.0,4307.9,1.05965808]
[1757019870073,0.6514,4308.0,4307.9,0.64185808]
[1757019870263,0.6514,4308.0,4307.9,1.05965808]
[1757019870469,0.8531,4308.0,4307.9,1.05965808]
[1757019871477,0.8531,4308.0,4307.9,1.17025808]
[1757019872275,0.8531,4308.0,4307.9,1.1691392]
[1757019872476,0.6514,4308.0,4307.9,1.1691392]
[1757019873175,0.318,4308.0,4307.9,1.1691392]
[1757019873384,0.5283,4308.1,4308.0,0.59478]
[1757019873575,0.5283,4308.1,4308.0,1.0585192]
[1757019873880,0.73,4308.1,4308.0,0.6407392]
[1757019874080,0.73,4308.1,4308.0,1.0585292]
[1757019874581,0.73,4308.1,4308.0,0.6407392]
[1757019874781,0.73,4308.1,4308.0,0.4637392]
[1757019875279,0.73,4308.1,4308.0,0.2867392]
[1757019876580,0.73,4308.1,4308.0,0.4637392]
[1757019876980,0.5283,4308.1,4308.0,1.0585292]
[1757019877182,0.318,4308.1,4308.0,1.1691292]
[1757019877980,0.5283,4308.1,4308.0,1.0585292]
[1757019878981,0.73,4308.1,4308.0,1.0585292]
[1757019879482,0.73,4308.1,4308.0,1.1691292]
[1757019879684,0.73,4308.1,4308.0,1.0585292]
[1757019881881,0.5283,4308.1,4308.0,1.1691292]
[1757019882084,0.318,4308.1,4308.0,1.1691292]
[1757019882488,0.3323,4308.5,4308.4,0.77175]
[1757019882682,0.6503,4308.5,4308.4,1.0584892]
[1757019882879,0.44,4308.5,4308.4,1.1690892]
[1757019883386,0.6503,4308.5,4308.4,1.1690892]
[1757019883585,0.6503,4308.5,4308.4,1.4030892]
[1757019884789,0.6503,4308.5,4308.4,1.2924892]
[1757019886789,0.852,4308.5,4308.4,1.2924892]
[1757019887292,0.852,4308.5,4308.4,0.6977392]
[1757019887790,0.852,4308.5,4308.4,0.5207392]
[1757019888187,0.6512,4308.5,4308.4,1.2952892]
[1757019888388,0.44,4308.5,4308.4,1.4059892]
[1757019888780,0.8541,4308.5,4308.4,1.2952892]
[1757019888985,0.6512,4308.5,4308.4,1.4059892]
[1757019889387,0.6512,4308.5,4308.4,1.2952892]
[1757019889588,0.8541,4308.5,4308.4,1.2952892]
[1757019893796,0.8541,4308.5,4308.4,1.3031309]
[1757019893996,0.6512,4308.5,4308.4,1.4138309]
[1757019894194,0.6512,4308.5,4308.4,1.3031309]
[1757019894590,0.8541,4308.5,4308.4,0.2945809]
[1757019896898,0.8541,4308.5,4308.4,0.29465925]
[1757019901804,0.8541,4308.5,4308.4,0.71240925]
[1757019902014,0.8541,4308.5,4308.4,1.06920925]
[1757019902215,0.6512,4308.5,4308.4,1.17990925]
[1757019902405,0.44,4308.5,4308.4,1.17990925]
[1757019902909,0.6512,4308.5,4308.4,1.17990925]
[1757019904211,0.44,4308.5,4308.4,1.17990925]
[1757019905307,0.6512,4308.5,4308.4,1.17990925]
[1757019905508,0.6512,4308.5,4308.4,1.06920925]
[1757019906007,0.6512,4308.5,4308.4,0.65145925]
[1757019906208,0.8541,4308.5,4308.4,0.29465925]
[1757019906907,0.8541,4308.5,4308.4,0.71240925]
[1757019907914,0.8541,4308.5,4308.4,0.29465925]
[1757019910409,0.8541,4308.5,4308.4,0.71240925]
[1757019910714,0.8541,4308.5,4308.4,0.89080925]
[1757019910915,0.8541,4308.5,4308.4,1.06920925]
[1757019911710,0.8541,4308.5,4308.4,1.17990925]
[1757019912214,0.44,4308.5,4308.4,1.17990925]
[1757019913115,0.6512,4308.5,4308.4,1.17990925]
[1757019913314,0.44,4308.5,4308.4,1.17990925]
[1757019913708,0.44,4308.5,4308.4,1.41390925]
[1757019914108,0.6512,4308.5,4308.4,1.30320925]
[1757019914309,0.8541,4308.5,4308.4,0.94640925]
[1757019914710,0.8541,4308.5,4308.4,0.29465925]
[1757019914915,0.8541,4308.5,4308.4,0.71240925]
[1757019915310,0.8541,4308.5,4308.4,0.29465925]
[1757019917914,0.1236,4308.0,4307.9,2.07313036]
[1757019918121,0.8528,4308.0,4307.9,0.4178]
[1757019919517,0.5419,4308.0,4307.7,0.41781]
[1757019919727,0.7292,4307.8,4307.7,0.41781]
[1757019920113,0.7292,4307.8,4307.7,0.62601]
[1757019920416,0.7292,4307.8,4307.7,1.14061]
[1757019920613,0.7292,4307.8,4307.7,0.82121]
[1757019921920,0.7292,4307.8,4307.6,3.2078]
[1757019922114,0.3109,4307.7,4307.6,3.62563]
[1757019922316,0.7292,4307.7,4307.6,3.83383]
[1757019924928,0.7292,4307.7,4307.6,4.15323]
[1757019925226,0.7292,4307.7,4307.6,4.34843]
[1757019926124,0.5227,4307.7,4307.6,4.34843]
[1757019926317,0.3109,4307.7,4307.6,4.34843]
[1757019926520,0.356,4308.5,4308.0,0.3194]
[1757019926824,0.2118,4308.4,4308.3,1.14056]
[1757019927016,0.5227,4308.4,4308.3,1.14056]
[1757019929922,0.5227,4308.4,4308.3,1.43152875]
[1757019930427,3.4196,4308.9,4308.8,0.82111]
[1757019930725,3.7305,4308.9,4308.8,1.43147875]
[1757019930924,0.5227,4308.9,4308.8,1.43147875]
[1757019935027,0.234,4309.3,4309.1,0.41768]
[1757019935230,0.9632,4309.3,4309.2,1.01376875]
[1757019935527,0.5227,4309.3,4309.2,1.01376875]
[1757019935739,0.5227,4309.3,4309.2,1.43144875]
[1757019937122,0.7292,4309.3,4309.2,1.11204875]
[1757019937327,0.7292,4309.3,4309.2,0.29096875]
[1757019937629,0.7292,4309.3,4309.2,0.91684875]
[1757019938226,0.7292,4309.3,4309.2,1.43144875]
[1757019942943,0.7292,4309.3,4309.2,0.29096875]
[1757019947735,0.2906,4309.2,4309.1,0.41769]
[1757019947935,0.9342,4309.2,4309.1,0.28944686]
[1757019948639,0.9342,4309.2,4309.1,0.70713686]
[1757019948838,0.9342,4309.2,4309.1,0.28944686]
[1757019949038,0.9342,4309.2,4309.1,0.70713686]
[1757019949640,0.9342,4309.2,4309.1,0.91333686]
[1757019950139,0.9342,4309.2,4309.1,0.49564686]
[1757019950539,0.9342,4309.2,4309.1,0.91333686]
[1757019950746,0.9342,4309.2,4309.1,1.42003686]
[1757019955237,0.5027,4309.2,4309.1,1.42003686]
[1757019955442,0.2906,4309.4,4309.3,1.13056]
[1757019955637,3.4984,4309.5,4309.4,0.41766]
[1757019955842,3.4984,4309.5,4309.4,1.42000686]
[1757019956037,3.7105,4309.5,4309.4,1.42000686]
[1757019957738,3.908,4309.5,4309.4,1.00234686]
[1757019958043,4.0273,4309.5,4309.4,1.42000686]
[1757019960446,3.8298,4309.5,4309.4,1.42000686]
[1757019960745,3.7105,4309.5,4309.4,1.42000686]
[1757019962339,0.5027,4309.5,4309.4,1.42000686]
[1757019963046,0.8195,4309.5,4309.4,1.42000686]
[1757019964951,3.741,4310.0,4309.9,0.83721]
[1757019965252,3.741,4310.0,4309.9,1.12665686]
[1757019965548,4.0316,4310.0,4309.9,1.12665686]
[1757019966348,0.8238,4310.0,4309.9,1.12665686]
[1757019967245,0.8238,4310.0,4309.9,0.91325686]
[1757019968647,0.8238,4310.0,4309.9,0.91331288]
[1757019969240,0.8238,4310.0,4309.9,1.42001288]
[1757019970950,0.8238,4310.0,4309.9,1.12671288]
[1757019975055,4.0316,4310.0,4309.9,0.28950288]
[1757019981660,4.2656,4310.0,4309.9,0.28950288]
[1757019987059,0.4885,4308.8,4308.7,3.1880562]
[1757019987258,0.4885,4308.8,4308.7,1.11523]
[1757019989465,0.1999,4308.8,4308.7,1.11523]
[1757019989657,0.4885,4309.0,4308.9,0.4177]
[1757019989855,0.4885,4309.0,4308.9,0.8107]
[1757019990262,0.4885,4309.0,4308.9,1.1152]
[1757019990457,3.4077,4309.5,4309.4,0.6975]
[1757019990655,3.2078,4309.5,4309.4,1.11516]
[1757019992062,3.4077,4309.5,4309.4,1.11516]
[1757019994062,3.2078,4309.5,4309.4,1.11516]
[1757019994264,0.6966,4309.7,4309.6,0.61424]
[1757019994567,0.6966,4309.7,4309.6,0.81064]
[1757019994867,0.6966,4309.7,4309.6,1.11514]
[1757019995372,0.234,4309.9,4309.8,1.11511]
[1757019995373,0.7225,4309.9,4309.8,1.11511]
[1757019996067,0.9306,4309.9,4309.8,1.11511]
[1757019997070,0.9306,4309.9,4309.8,0.6975]
[1757019997569,0.9306,4309.9,4309.8,1.11512]
[1757019999070,0.9306,4309.9,4309.8,1.40421112]
[1757020001776,3.2078,4310.0,4309.9,0.81061]
[1757020002076,3.6417,4310.0,4309.9,1.40420112]
[1757020002868,4.1384,4310.0,4309.9,1.40420112]
[1757020003173,4.1384,4310.0,4309.9,0.98659112]
[1757020003781,0.9306,4310.0,4309.9,0.98659112]
[1757020006277,0.9306,4310.0,4309.9,1.40420112]
[1757020007187,0.9306,4310.0,4309.9,0.98659112]
[1757020007387,0.9306,4310.0,4309.9,0.98569469]
[1757020007687,0.9306,4310.0,4309.9,1.40330469]
[1757020009388,0.6966,4310.0,4309.9,1.40330469]
[1757020010685,0.1999,4310.0,4309.9,1.40322022]
[1757020010885,0.4894,4310.0,4309.9,1.40322022]
[1757020011083,0.4894,4310.0,4309.9,1.11511]
[1757020012791,0.4894,4310.0,4309.9,1.40319351]
[1757020012980,0.1999,4310.0,4309.9,1.40319351]
[1757020013293,0.5235,4310.3,4309.9,1.40319351]
[1757020013594,0.4967,4310.2,4310.1,0.729]
[1757020013797,0.7087,4310.2,4310.1,0.729]
[1757020016796,0.4192,4310.2,4309.9,0.3123]
[1757020016995,0.2895,4310.1,4309.7,0.41763]
[1757020017189,0.7087,4310.1,4310.0,0.3123]
[1757020018094,0.7087,4310.1,4310.0,0.60051569]
[1757020018393,0.7087,4310.1,4310.0,0.80651569]
[1757020018794,0.7087,4310.1,4310.0,0.28821569]
[1757020019497,0.7087,4310.1,4310.0,0.60051569]
[1757020019691,0.7087,4310.1,4310.0,0.80651569]
[1757020020596,0.7087,4310.1,4310.0,0.80664865]
[1757020021095,0.7087,4310.1,4310.0,0.80664913]
[1757020022096,0.7087,4310.1,4310.0,1.01734913]
[1757020022393,0.7087,4310.1,4310.0,1.13374913]
[1757020022699,0.7307,4310.3,4310.2,0.729]
[1757020022897,0.9427,4310.3,4310.2,1.01734913]
[1757020023299,0.9427,4310.3,4310.2,1.01747771]
[1757020032009,0.9427,4310.3,4310.2,0.28847771]
[1757020032906,0.9427,4310.3,4310.2,0.80677771]
[1757020036600,0.9427,4310.3,4310.2,1.01747771]
[1757020038411,3.5122,4310.5,4310.2,1.43505771]
[1757020038610,0.234,4310.3,4310.2,1.12408]
[1757020038911,0.234,4310.3,4310.2,1.41593237]
[1757020039597,3.5122,4310.5,4310.2,1.41593237]
[1757020039803,3.7197,4310.5,4310.4,0.699]
[1757020040004,3.7197,4310.5,4310.4,0.99085237]
[1757020041105,3.7197,4310.5,4310.4,1.40841237]
[1757020041310,3.2078,4310.5,4310.4,1.40841237]
[1757020041504,0.5119,4310.9,4310.8,0.699]
[1757020041807,0.7459,4310.9,4310.8,0.99085237]
[1757020042504,0.9573,4310.9,4310.8,0.99085237]
[1757020047817,0.9573,4310.9,4310.8,0.78635237]
[1757020054423,0.9573,4310.9,4310.8,0.99085237]
[1757020058123,0.7233,4310.9,4310.8,0.99085237]
[1757020058420,3.3231,4311.0,4310.9,0.699]
[1757020058421,3.2078,4311.0,4310.9,0.699]
[1757020058618,3.4408,4311.0,4310.9,0.99085237]
[1757020062121,3.6483,4311.0,4310.9,0.99085237]
[1757020062723,3.4408,4311.0,4310.9,0.99085237]
[1757020063028,3.4408,4311.0,4310.9,1.22282237]
[1757020063822,3.4408,4311.0,4310.9,0.99085237]
[1757020064017,4.1641,4311.0,4310.9,0.99085237]
[1757020064415,3.6483,4311.0,4310.9,0.99085237]
[1757020064620,3.4408,4311.0,4310.9,0.99085237]
[1757020067129,3.9527,4311.0,4310.9,0.99085237]
[1757020067322,4.1641,4311.0,4310.9,0.99085237]
[1757020067522,4.2794,4311.0,4310.9,0.29185237]
[1757020068429,4.1641,4311.0,4310.9,1.00465237]
[1757020068623,3.6483,4311.0,4310.9,1.00465237]
[1757020068928,3.6483,4311.0,4310.9,0.7128]
[1757020069128,3.9571,4311.0,4310.9,1.00190781]
[1757020070931,4.2802,4311.0,4310.9,0.59270781]
[1757020071730,4.2802,4311.0,4310.9,0.79320781]
[1757020072323,4.1535,4311.0,4310.9,1.00190781]
[1757020081237,3.9571,4311.0,4310.9,1.00190781]
[1757020081536,3.7241,4311.0,4310.9,1.41941781]
[1757020081732,0.5163,4311.0,4310.9,1.41941781]
[1757020082129,0.5163,4311.0,4310.9,1.4195003]
[1757020082130,0.2075,4311.0,4310.9,1.4195003]
[1757020082332,1.0,4311.2,4311.1,0.7128]
[1757020082537,1.1922,4311.2,4311.1,1.0019903]
[1757020083937,1.0,4311.2,4311.1,1.0019903]
[1757020084534,1.1922,4311.2,4311.1,1.00192856]
[1757020084745,1.501,4311.2,4311.1,1.00192856]
[1757020085050,1.6974,4311.2,4311.1,1.00192856]
[1757020089343,1.1922,4311.2,4311.1,1.00192856]
[1757020090145,1.501,4311.2,4311.1,1.00192856]
[1757020090850,1.501,4311.2,4311.1,1.23492856]
[1757020092845,1.6974,4311.2,4311.1,1.00192856]
[1757020095362,1.1922,4311.2,4311.1,1.00192856]
[1757020095858,1.501,4311.2,4311.1,1.00192856]
[1757020098657,1.6974,4311.2,4311.1,1.00192856]
[1757020099562,1.6974,4311.2,4311.1,1.23492856]
[1757020099864,1.6974,4311.2,4311.1,0.52212856]
[1757020100957,1.6974,4311.2,4311.1,0.28912856]
[1757020101166,1.6974,4311.2,4311.1,0.52212856]
[1757020103669,1.6974,4311.2,4311.1,0.82582856]
[1757020103862,1.6974,4311.2,4311.1,1.03602856]
[1757020107574,1.6974,4311.2,4311.1,0.52212856]
[1757020108068,1.6974,4311.2,4311.1,1.24932856]
[1757020110177,1.6974,4311.2,4311.1,1.25335852]
[1757020120384,1.6974,4311.2,4311.1,0.52615852]
[1757020121779,1.6974,4311.2,4311.1,0.29315852]
[1757020134089,1.6974,4311.2,4311.1,1.00095852]
[1757020134779,1.6974,4311.2,4311.1,0.79365852]
[1757020135185,1.6974,4311.2,4311.1,0.29315852]
[1757020135990,2.31082956,4311.2,4311.1,0.29315852]
[1757020136289,1.6974,4311.2,4311.1,0.29315852]
[1757020138394,1.6974,4311.2,4311.1,0.29045493]
[1757020140594,1.6974,4311.2,4311.1,0.58945493]
[1757020141388,1.6974,4311.2,4311.1,0.79095493]
[1757020141585,1.6974,4311.2,4311.1,0.99825493]
[1757020141789,1.0,4311.2,4311.1,0.99825493]
[1757020144299,1.0,4311.2,4311.1,0.99814387]
[1757020146899,1.2054,4311.2,4311.1,0.99814387]
[1757020147398,1.0,4311.2,4311.1,0.99814387]
[1757020150599,1.0,4311.2,4311.1,1.23114387]
[1757020153202,1.4986,4311.2,4311.1,1.23114387]
[1757020159004,1.0,4311.2,4311.1,1.23114387]
[1757020160508,1.0,4311.2,4311.1,1.64863387]
[1757020169812,1.2106,4311.2,4311.1,1.64863387]
[1757020170004,1.7105,4311.2,4311.1,1.64863387]
[1757020174410,1.7105,4311.2,4311.1,1.35829]
[1757020174614,1.7105,4311.2,4311.1,1.6465534]
[1757020179419,1.0,4311.2,4311.1,1.6465534]
[1757020180119,1.0,4311.2,4311.1,1.64671532]
[1757020180519,1.7105,4311.2,4311.1,1.64671532]
[1757020181822,1.7105,4311.2,4311.1,1.35829]
[1757020192220,0.7043,4311.1,4311.0,3.2078]
[1757020192428,0.7043,4311.1,4311.0,3.4408]
[1757020194818,0.7043,4311.1,4311.0,3.2078]
[1757020195129,0.7043,4311.1,4311.0,3.4408]
[1757020198333,0.7043,4311.1,4311.0,3.2078]
[1757020198530,0.7043,4311.1,4311.0,3.4408]
[1757020200225,0.7043,4311.1,4311.0,3.2078]
[1757020200424,0.7043,4311.1,4311.0,0.233]
[1757020200628,0.7043,4311.1,4310.7,0.3113]
[1757020200830,0.399,4310.9,4310.8,0.233]
[1757020201024,0.7043,4310.9,4310.8,0.233]
[1757020201527,0.7043,4310.9,4310.8,0.7576]
[1757020206835,0.7043,4310.9,4310.8,0.233]
[1757020207140,0.7043,4310.9,4310.8,0.5443]
[1757020207341,0.7043,4310.9,4310.8,0.7576]
[1757020211845,0.7043,4310.9,4310.8,0.5246]
[1757020212045,0.7043,4310.9,4310.8,0.7576]
[1757020212346,0.7043,4310.9,4310.8,1.17512]
[1757020212547,0.7043,4310.9,4310.8,1.36932]
[1757020213347,0.7043,4310.9,4310.8,1.13632]
[1757020213652,0.7043,4310.9,4310.8,1.36932]
[1757020213956,0.7043,4310.9,4310.8,0.9518]
[1757020214851,0.7043,4310.9,4310.8,1.36932]
[1757020220357,0.7043,4310.9,4310.8,1.69272566]
[1757020236365,1.0,4311.2,4310.8,0.55640566]
[1757020236564,1.5029,4311.2,4311.1,1.11609]
[1757020236766,1.7138,4311.2,4311.1,1.02200566]
[1757020237270,1.7138,4311.2,4311.1,1.02002176]
[1757020238072,1.7138,4311.2,4311.1,1.43751176]
[1757020244375,1.0,4311.2,4311.1,1.43751176]
[1757020244670,0.4058,4311.9,4311.1,0.233]
[1757020244873,0.7138,4311.8,4311.7,0.41743]
[1757020252376,0.7138,4311.8,4311.6,0.41744]
[1757020252678,0.3079,4311.2,4311.1,0.65049]
[1757020259984,0.7246,4311.2,4311.1,0.65049]
[1757020260878,0.7246,4311.2,4311.1,0.41749]
[1757020261083,0.7246,4311.2,4311.0,0.233]
[1757020261280,0.3079,4311.1,4311.0,0.6505]
[1757020261582,0.7246,4311.1,4311.0,0.6505]
[1757020275093,0.7246,4311.1,4311.0,0.4175]
[1757020275293,0.7246,4311.1,4311.0,0.6505]